[Event "Bangabandhu Premier Div League 2022"]
[Site "Dhaka"]
[Date "2022.12.01"]
[Round "2.7"]
[White "Abdul, Momin"]
[Black "Mitrabha, Guha"]
[Result "0-1"]
[ECO "B15"]
[WhiteElo "1900"]
[BlackElo "2474"]
[Annotator "TA"]
[PlyCount "66"]
[EventDate "2022.11.30"]
[EventType "team-tourn"]
[EventCountry "BAN"]
[SourceTitle "playchess.com"]
[Source "ChessBase"]
[SourceQuality "1"]
[TimeControl "40/5400+30:1800+30"]

{[%evp 11,66,9,23,15,28,33,56,27,47,26,38,25,31,12,36,4,56,61,85,35,56,48,51,37,42,0,0,-10,0,-29,66,-64,-26,-19,-14,-20,0,0,0,12,48,-215,-208,-220,-209,-222,-209,-223,-202,-747,-747,-731,-712,-29986,-29987,-29989,-29990]} 1. e4 {[%emt 0:19:38]} c6 {[%emt 0:00:13]} 2. d4 {[%emt 0:07:59]} d5 {[%emt 0:00:02]} 3. Nc3 {[%emt 0:00:16]} dxe4 {[%emt 0:00:02]} 4. Nxe4 {[%emt 0:00:16]} Nf6 {[%emt 0:00:03]} 5. Ng3 {[%emt 0:01:21]} h5 {[%emt 0:00:02]} 6. h4 {[%emt 0:00:28]} Bg4 {[%emt 0:00:02]} 7. N1e2 {[%emt 0:03:43][%cal Bg1e2,Be2c1,Bc1d3][%mdl 32] B15: Caro-Kann: 3 Nc3: 3...g6 and 3...dxe4 4 Nxe4 Nf6 5 Nxf6+ exf6.} Na6 {[%emt 0:01:47][%cal Oe7e5,Bb8a6,Ba6c7,Bc7d5][%mdl 32]} 8. c3 {[%emt 0:01:34] [#] Against e5} Nc7 $146 {[%emt 0:04:26]} ({Predecessor:} 8... Qd7 9. Qc2 O-O-O 10. Bg5 Nd5 11. O-O-O f6 12. Bd2 g6 13. f3 Bf5 14. Nxf5 Qxf5 15. Qxf5+ gxf5 {½-½ (40) Susimaa,H-Puhakka,E Finland 1988}) 9. Bg5 {[%emt 0:01:23] White is slightly better.} (9. Qb3 $5 {[%cal Rb3b7]}) 9... Ncd5 {[%emt 0:01:23]} 10. Qd2 {[%emt 0:01:14]} g6 {[%emt 0:01:38]} 11. Nc1 {[%emt 0:00:29]} Qd6 {[%emt 0:04:47]} 12. Bc4 {[%emt 0:02:27]} Bg7 {[%emt 0:07:10]} (12... Nh7 {is interesting.} 13. Nd3 Nxg5 14. hxg5 Bg7) 13. O-O {[%emt 0:02:33]} O-O {[%emt 0:01:59]} (13... Nh7 $1 $11) 14. Nd3 {[%emt 0:01:42]} Nh7 {[%emt 0:02:52]} 15. Ne4 {[%emt 0:01:48]} (15. Bh6 $1 $16) 15... Qc7 {[%emt 0:01:11]} 16. Bh6 {[%emt 0:00:55]} Bf5 {[%emt 0:03:12]} 17. Bxg7 {[%emt 0:00:27]} (17. f3 {with more complications.} a5 18. Rae1 Nb6 19. b3) 17... Kxg7 {[%emt 0:00:05]} 18. Ng3 {[%emt 0:02:52] Black must now prevent Nxf5+.} (18. Rae1 {keeps more tension.} Nhf6 19. f3 Rae8 20. Ne5) 18... Bxd3 {[%emt 0:00:26]} 19. Bxd3 {[%emt 0:01:13]} Rad8 {[%emt 1:08:40]} 20. Rae1 {[%emt 0:02:31]} c5 {[%emt 0:00:00]} (20... Nf4 $11) 21. c4 {[%emt 0:01:37]} (21. Re5 $1 $14 Rh8 22. Bc2 (22. c4 Ndf6 $11)) 21... Qf4 {[%emt 0:00:00]} 22. Qxf4 {[%emt 0:03:08]} Nxf4 {[%emt 0:01:30]} 23. Bb1 {[%emt 0:00:08]} cxd4 {[%emt 0:00:00][%cal Bc5d4,Bd4d3,Bd3d2][%mdl 32]} 24. Rxe7 {[%emt 0:00:09]} Nf6 {[%emt 0:01:00]} 25. Rxb7 {[%emt 0:04:14]} Rfe8 {[%emt 0:00:30]} (25... Ng4 $5 {[%cal Rd4d3]}) 26. Rxa7 $2 {[%emt 0:02:23][%mdl 8192] [#] Loses the game.} (26. f3 $1 $14 {stays ahead.}) 26... d3 $1 $19 {[%emt 0:00:00] ...Ne2+ is the strong threat.} 27. f3 {[%emt 0:01:47]} d2 {[%emt 0:01:00][%mdl 1024] Black has strong compensation.} 28. Bc2 {[%emt 0:00:28] Prevents d1Q.} Re1 {[%emt 0:00:30]} 29. Bd1 {[%emt 0:36:17] [#]} Rde8 $1 {[%emt 0:00:30][%cal Oe1d1] Strongly threatening ...Rxd1!} 30. Bb3 {[%emt 0:00:00]} (30. Kh2) 30... Rb8 {[%emt 0:00:30][%cal Ob8b3,Be8b8,Bb8b4,Bb4a4][%mdl 32]} 31. Ba4 {[%emt 0:00:00]} Rb4 {[%emt 0:00:30][%cal Ob4a4] ( -> ...Rxa4!)} 32. Ra6 {[%emt 0:00:00] [#]} Rxa4 $1 {[%emt 0:00:00][%mdl 576]} 33. Rd6 {[%emt 0:00:00] [#]} (33. Rxf6 Rxf1+) 33... N6d5 $1 {[%emt 0:00:00][%mdl 512] Weighted Error Value: White=0.64/Black=0.17 (very precise)} 0-1

[Event "Bangabandhu Premier Div League 2022"]
[Site "Dhaka"]
[Date "2022.12.01"]
[Round "2.8"]
[White "Chatterjee, Debaraj"]
[Black "Jannatul, Ferdous"]
[Result "1-0"]
[ECO "E01"]
[WhiteElo "2196"]
[BlackElo "1861"]
[Annotator "TA"]
[PlyCount "100"]
[EventDate "2022.11.30"]
[EventType "team-tourn"]
[EventCountry "BAN"]
[SourceTitle "playchess.com"]
[Source "ChessBase"]
[SourceQuality "1"]
[TimeControl "40/5400+30:1800+30"]

{[%evp 23,100,29,30,26,33,23,47,33,26,41,56,28,70,9,21,10,67,63,59,75,62,37,59,39,33,29,42,39,46,40,67,77,108,110,116,109,107,0,0,0,0,0,0,0,0,0,0,0,100,85,172,70,149,70,195,105,564,554,582,557,550,472,29946,29949,7532,4803,29974,29976,29977,29978,29977,29978,29981,29982,29982,29983,29984,29982,29982]} 1. d4 {[%emt 0:01:36]} d5 {[%emt 0:00:15]} 2. c4 {[%emt 0:00:07]} e6 {[%emt 0:00:10]} 3. Nf3 {[%emt 0:00:33]} Nf6 {[%emt 0:00:04]} 4. g3 {[%emt 0:00:11]} c6 {[%emt 0:00:11]} 5. Bg2 {[%emt 0:00:57]} Bd6 {[%emt 0:00:06]} 6. O-O {[%emt 0:00:35]} O-O {[%emt 0:00:16]} 7. Nbd2 {[%emt 0:02:50][%cal Bb1d2,Bd2f3,Bf3d4][%mdl 32]} Nbd7 {[%emt 0:00:54]} 8. Qc2 {[%emt 0:00:15]} e5 {[%emt 0:02:36]} 9. cxd5 {[%emt 0:06:10]} cxd5 {[%emt 0:00:56]} 10. dxe5 {[%emt 0:00:14]} Nxe5 {[%emt 0:00:39]} 11. Nxe5 {[%emt 0:00:34]} Bxe5 {[%emt 0:00:03]} 12. Nf3 {[%emt 0:00:13]} Bd6 {[%emt 0:00:03]} 13. Rd1 {[%emt 0:03:23] E01: Catalan: Early deviations.} h6 {[%emt 0:01:01]} 14. Nd4 {[%emt 0:10:35] [#]} Be6 $146 {[%emt 0:08:11]} ({Predecessor:} 14... Qb6 15. Qb3 Bc5 16. Qxb6 Bxb6 17. Be3 Ng4 18. Bf4 g5 19. Bd6 Rd8 20. Bb4 Ne5 {½-½ (121) Baules Rodriguez,J (2317)-Al Qudaimi,B (2396) Tromsoe 2014}) 15. Qb3 {[%emt 0:11:25] White is slightly better.} Qe7 {[%emt 0:05:38]} 16. Be3 {[%emt 0:16:58]} a6 {[%emt 0:01:45]} 17. Qd3 {[%emt 0:06:44]} (17. Rac1 {simplifies} Rac8 18. Rxc8 Rxc8 19. Nxe6 fxe6 20. Bd4) 17... Ng4 {[%emt 1:16:12] [#]} 18. Bf4 {[%emt 0:36:10]} (18. Bxd5 $1 $14 Nxe3 19. Qxe3 Bxd5 20. Qxe7 Bxe7 21. Nf5) 18... Bxf4 $11 {[%emt 0:00:00]} 19. gxf4 {[%emt 0:00:30]} Qh4 {[%emt 0:01:00]} (19... Nf6 $11) 20. Qg3 $14 {[%emt 0:00:00]} Qxg3 {[%emt 0:00:00]} 21. hxg3 {[%emt 0:00:00]} Nf6 {[%emt 0:00:00]} 22. Nc2 {[%emt 0:00:00]} Rfd8 {[%emt 0:00:00]} 23. Ne3 {[%emt 0:00:00]} g6 {[%emt 0:00:00] Against f5} 24. Rd4 {[%emt 0:00:00]} Rac8 {[%emt 0:02:30]} 25. Rad1 {[%emt 0:00:00]} b5 {[%emt 0:00:00]} 26. Bf3 {[%emt 0:00:00][%cal Og3g4]} Kf8 {[%emt 0:00:00]} 27. g4 {[%emt 0:00:00]} ({Much worse is} 27. Bxd5 Nxd5 28. Nxd5 Rxd5 29. Rxd5 Bxd5 30. Rxd5 Rc2 $11) ({But not} 27. Nxd5 Rxd5 28. Rxd5 (28. Bxd5 Nxd5 29. Rxd5 Bxd5 $11) 28... Bxd5 29. Bxd5 Nxd5 30. Rxd5 Rc1+ 31. Kg2 Rc2 $11) 27... Ke7 {[%emt 0:00:00]} 28. f5 {[%emt 0:00:00] White is more active.} (28. Bxd5 Nxd5 29. Nxd5+ Bxd5 30. Rxd5 Rxd5 31. Rxd5 Rc2 $15) 28... gxf5 {[%emt 0:00:00]} 29. gxf5 {[%emt 0:00:00]} ({Stronger than} 29. Bxd5 Nxd5 30. Nxd5+ Bxd5 31. Rxd5 Rxd5 32. Rxd5 fxg4 $17) 29... Bd7 {[%emt 0:00:00]} 30. Nxd5+ {[%emt 0:00:21]} (30. Bxd5 $16 Bc6 31. Bb3) 30... Nxd5 $11 {[%emt 0:00:00]} 31. Rxd5 {[%emt 0:03:05][%cal Of5f6] aiming for f6+!} Bxf5 {[%emt 0:00:00][%mdl 64]} 32. Rxd8 {[%emt 0:00:05]} Rxd8 {[%emt 0:00:00]} 33. Rxd8 {[%emt 0:00:04]} Kxd8 $16 {[%emt 0:00:00][%mdl 4096] Endgame KB-KB} 34. b4 {[%emt 0:00:02]} Kc7 {[%emt 0:00:00]} 35. Kg2 {[%emt 0:00:43]} Kb6 {[%emt 0:00:00]} (35... Kd6 $11) 36. Kg3 {[%emt 0:00:05] White now steadily converts the win.} f6 {[%emt 0:00:00]} (36... Kc7 $16) 37. Kf4 {[%emt 0:02:30]} ({White should try} 37. Kh4 $1 $18 {[%cal Rh4h5]}) 37... Bg6 {[%emt 0:00:00] [#]} (37... Be6 $14) 38. a3 {[%emt 0:00:16]} (38. e4 $1 $16) 38... Bh7 {[%emt 0:05:22] [#]} (38... Kc7 $1 $14) 39. Bh5 {[%emt 0:00:19]} (39. e4 $1 $18) 39... a5 $2 {[%emt 0:00:29][%mdl 8192]} (39... Kc6 $16 {is tougher.}) 40. Be8 $18 {[%emt 0:01:12]} axb4 {[%emt 0:00:21]} 41. axb4 {[%emt 0:30:08]} Bc2 {[%emt 0:02:29]} 42. e4 {[%emt 0:00:00][%cal Be2e4,Be4e5][%mdl 32] White threatens Kf5 and mate.} Bd3 {[%emt 0:07:13]} (42... Kc7 $18 43. Bxb5 Bd1) 43. Kf5 {[%emt 0:00:00]} Kc7 {[%emt 0:20:27]} 44. Bg6 {[%emt 0:00:00]} Be2 {[%emt 0:02:04]} 45. Kxf6 {[%emt 0:00:00] White mates.} h5 {[%emt 0:00:33]} 46. Kg5 {[%emt 0:00:00]} Bf3 {[%emt 0:00:53]} 47. e5 {[%emt 0:00:00]} Kc6 {[%emt 0:00:54]} 48. Bxh5 {[%emt 0:00:00]} Bd5 {[%emt 0:00:34]} 49. f4 {[%emt 0:00:00]} Bg8 {[%emt 0:00:15]} 50. Be8+ {[%emt 0:00:00]} Kd5 {[%emt 0:01:26] Weighted Error Value: White=0.17 (very precise) /Black=0.63} 1-0

[Event "Bangabandhu Premier Div League 2022"]
[Site "Dhaka"]
[Date "2022.12.01"]
[Round "2.8"]
[White "Bappi, A.b."]
[Black "Asif, Mahmud"]
[Result "1/2-1/2"]
[ECO "A22"]
[WhiteElo "1846"]
[BlackElo "1926"]
[Annotator "TA"]
[PlyCount "84"]
[EventDate "2022.12.01"]
[EventCountry "BAN"]
[SourceTitle "playchess.com"]
[Source "ChessBase"]
[SourceQuality "1"]
[TimeControl "40/5400+30:1800+30"]

{[%evp 9,84,-22,-7,-10,-11,-24,-13,-15,-16,-12,-6,-13,2,1,6,0,4,-38,-9,-15,-13,-57,-23,-31,-14,-48,-43,-38,-49,-45,-37,-47,-29,-45,-17,-18,-20,-28,-21,-21,0,2,31,2,31,29,12,11,27,14,41,13,11,0,0,0,0,0,2,0,0,0,0,0,0,0,0,0,0,0,0,0,0,0,0,0,0]} 1. c4 {[%emt 0:00:12]} e5 {[%emt 0:00:21]} 2. Nc3 {[%emt 0:00:17]} Nf6 {[%emt 0:00:18]} 3. e4 {[%emt 0:00:42]} Bc5 {[%emt 0:01:20]} 4. Be2 {[%emt 0:00:56]} d6 {[%emt 0:02:31]} 5. d3 {[%emt 0:00:36]} c6 {[%emt 1:28:30] [#]} 6. Bf3 $146 {[%emt 1:30:47] A22: English Opening: 1...e5 2 Nc3 Nf6.} ({Predecessor:} 6. Be3 Bxe3 7. fxe3 Qb6 8. Qd2 Ng4 9. Bxg4 Bxg4 10. h3 Be6 11. Nf3 Nd7 12. O-O O-O 13. Ng5 {½-½ (62) Kelmendi,B (1942)-Headlong,F (1756) England 2019}) 6... O-O {[%emt 0:00:00]} 7. Nge2 {[%emt 0:00:00]} Re8 {[%emt 0:00:00]} 8. O-O {[%emt 0:01:00]} a5 {[%emt 0:00:00]} 9. Bg5 {[%emt 0:00:00]} h6 {[%emt 0:00:00]} 10. Be3 {[%emt 0:00:00]} Bxe3 {[%emt 0:00:00]} 11. fxe3 {[%emt 0:00:00]} Ng4 {[%emt 0:00:00]} 12. Qd2 {[%emt 0:00:00]} Qg5 {[%emt 0:03:30]} 13. Nd1 {[%emt 0:00:00]} h5 {[%emt 0:00:00]} 14. Bxg4 {[%emt 0:00:00]} Bxg4 {[%emt 0:00:00]} 15. Ng3 {[%emt 0:00:00]} g6 {[%emt 0:01:30]} 16. Nf2 {[%emt 0:00:00]} Be6 {[%emt 0:00:00]} 17. Kh1 {[%emt 0:00:00]} Nd7 {[%emt 0:00:00][%cal Bb8d7,Bd7f6,Bf6g4][%mdl 32]} 18. Ne2 {[%emt 0:00:00]} Kg7 {[%emt 0:00:00]} 19. Ng1 {[%emt 0:00:00]} Qe7 {[%emt 0:00:00]} 20. b3 {[%emt 0:00:00]} Nf6 {[%emt 0:00:00]} 21. d4 {[%emt 0:00:00]} Ng4 {[%emt 0:00:00]} 22. Nf3 {[%emt 0:07:00]} a4 {[%emt 0:00:00]} 23. h3 {[%emt 0:00:00]} Nxf2+ {[%emt 0:00:00]} 24. Qxf2 {[%emt 0:01:00]} exd4 {[%emt 0:00:00]} 25. exd4 {[%emt 0:00:00]} c5 {[%emt 0:00:00]} 26. Rae1 {[%emt 0:00:00] Black must now prevent d5.} axb3 {[%emt 0:00:00]} (26... cxd4 {seems wilder.} 27. Nxd4 Bd7 28. Re3 axb3 29. axb3 Ra5) 27. axb3 {[%emt 0:01:30] d5 is the strong threat.} cxd4 {[%emt 0:00:00]} 28. Qxd4+ {[%emt 0:00:00]} (28. Qg3 {with more complications.} d3 29. Re3 Bd7 30. Rxd3 Bc6 31. Nh4) 28... Kg8 {[%emt 0:00:00]} 29. Rf2 {[%emt 0:00:00]} Ra3 {[%emt 0:00:00]} 30. Rb2 {[%emt 0:00:00]} Rea8 {[%emt 0:00:00] The position is equal.} 31. Kh2 {[%emt 0:00:00]} Ra2 {[%emt 0:08:00]} 32. Rxa2 {[%emt 0:00:00]} Rxa2 {[%emt 0:00:00]} 33. Rd1 {[%emt 0:00:00]} Ra3 {[%emt 0:00:00]} 34. Ra1 {[%emt 0:00:00]} Rxa1 {[%emt 0:00:00]} 35. Qxa1 $11 {[%emt 0:00:00][%mdl 4096] Endgame KQB-KQN} Bd7 {[%emt 0:00:00][%cal Od7c6]} 36. e5 {[%emt 0:00:00]} Bc6 {[%emt 0:00:00]} 37. exd6 {[%emt 0:00:00]} (37. Qa8+ Kh7 38. Qa5 Bxf3 39. gxf3 Qxe5+ 40. Qxe5 dxe5 $19) 37... Qxd6+ {[%emt 0:00:00]} 38. Qe5 {[%emt 0:00:00]} Qd3 {[%emt 0:00:00]} 39. Qb8+ {[%emt 0:00:00]} Kg7 {[%emt 0:00:00]} 40. Ne5 {[%emt 0:00:00]} Qe4 {[%emt 0:00:42][%csl Gc6][%cal Re4g2] [#]} (40... Qxb3 $2 41. Nxc6 Qxc4 42. Na5 $18 (42. Qxb7 Qf4+ 43. Kh1 Qf1+ 44. Kh2 Qf4+ 45. Kh1 Qf1+ 46. Kh2 Qf4+ $11) (42. Ne7 Qc5 $11)) 41. Nxc6 {[%emt 0:00:00]} bxc6 {[%emt 0:30:55]} 42. Qc7 {[%emt 0:00:00]} h4 {[%emt 0:01:57] Weighted Error Value: White=0.07 (flawless) /Black=0.09 (flawless)} 1/2-1/2

[Event "Bangabandhu Premier Div League 2022"]
[Site "Dhaka"]
[Date "2022.12.01"]
[Round "2.9"]
[White "Anata, Choudhury"]
[Black "Murshed, Niaz"]
[Result "1-0"]
[ECO "C16"]
[WhiteElo "2176"]
[BlackElo "2419"]
[Annotator "TA"]
[PlyCount "53"]
[EventDate "2022.11.30"]
[EventType "team-tourn"]
[EventCountry "BAN"]
[SourceTitle "playchess.com"]
[Source "ChessBase"]
[SourceQuality "1"]
[TimeControl "40/5400+30:1800+30"]

{[%evp 14,53,13,-2,28,29,17,-1,0,0,0,-22,10,-118,29,28,30,25,36,27,27,0,0,-68,-39,-50,-40,-84,-16,-54,-39,-140,31,0,420,132,4910,3450,29987,29980,29993,29994]} 1. e4 {[%emt 0:00:05]} e6 {[%emt 0:01:01]} 2. d4 {[%emt 0:00:14]} d5 {[%emt 0:00:05]} 3. Nc3 {[%emt 0:00:08]} Bb4 {[%emt 0:00:05]} 4. e5 {[%emt 0:00:13]} Ne7 {[%emt 0:01:40]} 5. a3 {[%emt 0:00:40]} Bxc3+ {[%emt 0:00:05]} 6. bxc3 {[%emt 0:00:06]} b6 {[%emt 0:00:02]} 7. Qg4 {[%emt 0:02:01]} Kf8 {[%emt 0:00:04]} 8. h4 {[%emt 0:02:31][%cal Bh2h4,Bh4h5][%mdl 32]} Ba6 {[%emt 0:00:07] C16: French: 3 Nc3 Bb4 4 e5: Lines without ...c5.} 9. h5 {[%emt 0:00:36] Black must now prevent h6.} h6 $1 {[%emt 0:00:51]} 10. Nf3 {[%emt 0:04:12]} Bxf1 {[%emt 0:05:31] The position is equal.} 11. Kxf1 {[%emt 0:00:08] [#]} c5 $146 {[%emt 0:00:14]} ({Predecessor:} 11... Nbc6 12. Nh4 Qd7 13. Qf4 Ke8 14. Rh3 Nd8 15. a4 c5 16. g4 Qb7 17. Kg1 Rc8 18. Ba3 cxd4 19. cxd4 Rc4 20. a5 {½-½ (20) Niehaus,F (2208)-Albrecht,R (2110) Berlin 2012}) 12. Nh4 {[%emt 0:01:03]} cxd4 {[%emt 0:05:54]} (12... Qc7 $5 {[%cal Rc5d4]}) 13. Rh3 {[%emt 0:01:38]} (13. cxd4 $11 Qc7 14. Qd1) 13... Nbc6 {[%emt 0:07:46]} (13... dxc3 $1 $17 {aiming for ...Nd7.} 14. a4 Nd7) 14. cxd4 $11 {[%emt 0:00:43]} Qd7 {[%emt 0:32:34]} 15. Rg3 {[%emt 0:13:24]} Rg8 {[%emt 0:01:10]} 16. a4 {[%emt 0:00:29]} Rc8 {[%emt 0:03:33][%cal Oc6d4]} 17. Rf3 $40 {[%emt 0:47:27][%mdl 128] Black needs to defend precisely.} (17. c3 {simplifies} Ke8 18. Kg1 Na5 19. Qd1) 17... Nxd4 {[%emt 0:11:40]} 18. Ng6+ {[%emt 0:10:54]} (18. Qxd4 $11 Rc4 19. Ng6+ Nxg6 20. Qd3) 18... Nxg6 $15 {[%emt 0:01:05]} 19. Qxd4 {[%emt 0:00:09]} Ne7 {[%emt 0:11:46]} 20. Ba3 {[%emt 0:02:27] Strongly threatening Qf4.} Ke8 {[%emt 0:05:29]} (20... Rxc2 $2 21. Qf4 Qe8 22. Rc1 Rxc1+ 23. Qxc1 $18) (20... g5 $1 $17 {Threatens to win with ...Rc4.} 21. hxg6 Rxg6) 21. Qd3 {[%emt 0:03:55][%cal Oa4a5]} (21. Qf4 Nf5 22. Rd1 Qb7 $17) 21... Qxa4 {[%emt 0:01:50] Hoping for ...g6.} 22. Kg1 {[%emt 0:01:43]} (22. g3 $1 $15) 22... a5 $2 {[%emt 0:03:55]} (22... Qxc2 23. Qxc2 Rxc2 24. Bxe7 Kxe7 25. Rxa7+ Kd8 26. Rfxf7 $18) (22... g6 $17 23. Bb2 Qd7) 23. Rb1 {[%emt 0:02:56]} Nf5 $2 {[%emt 0:04:17][%mdl 8192]} (23... Rxc2 $2 24. Rxb6 Qc4 25. Rb8+ Kd7 26. Rb7+ Kc6 27. Qxc4+ dxc4 28. Rxe7 $18) (23... Qxc2 $11 {and Black is okay.} 24. Qxc2 Rxc2 25. Rxb6 Rc7) 24. Rxb6 $2 {[%emt 0:00:56]} (24. Qa6 $18 {[%cal Ra6c8] is more deadly.} Qc4 25. Qxb6) 24... g6 $2 {[%emt 0:00:26][%mdl 8192]} (24... Rxc2 25. Rxf5 Qc4 26. Rb8+ Kd7 27. Rxf7+ (27. Rxg8 $2 {loses.} Qxd3 28. Rxf7+ Kc6 $19) 27... Kc6 {[#]} 28. Rbb7 $1 (28. Rxg8 $2 {is the wrong capture.} Qxd3 29. Rf3 Qe2 $19) 28... Rc8 29. Qg6 Rc1+ 30. Bxc1) (24... Qxc2 {is a self mate.} 25. Qb5+ Kd8 26. Rxf5 $1 {[%mdl 512]} Rc7 27. Qa6 $1) (24... Qc4 $16) 25. Qa6 $18 {[%emt 0:00:45][%cal Ra6c8]} Qd7 {[%emt 0:00:23]} 26. Rb7 {[%emt 0:00:28]} Qa4 {[%emt 0:00:05] [#]} 27. Rxf5 $1 {[%emt 0:02:13][%mdl 576] Weighted Error Value: White=0.47/Black=0.94} 1-0

[Event "Bangabandhu Premier Div League 2022"]
[Site "Dhaka"]
[Date "2022.12.01"]
[Round "2.10"]
[White "Pantsulaia, Levan"]
[Black "Koustav Chatterjee"]
[Result "0-1"]
[ECO "A13"]
[WhiteElo "2597"]
[BlackElo "2496"]
[Annotator "TA"]
[PlyCount "68"]
[EventDate "2022.11.30"]
[EventType "team-tourn"]
[EventCountry "BAN"]
[SourceTitle "playchess.com"]
[Source "ChessBase"]
[SourceQuality "1"]
[TimeControl "40/5400+30:1800+30"]

{[%evp 14,68,11,8,33,0,0,0,0,0,0,-18,-20,-35,20,18,22,30,19,12,22,0,2,-23,-31,-28,-15,-47,-19,-87,-88,-96,-112,-114,-100,-109,-109,-327,-340,-344,-344,-344,-327,-335,-334,-29966,-29967,-29965,-29969,-29969,-29971,-29969,-29971,-29968,-29969,-6370,-6291]} 1. c4 {[%emt 0:00:14]} Nf6 {[%emt 0:00:28]} 2. Nf3 {[%emt 0:01:15]} e6 {[%emt 0:00:14]} 3. g3 {[%emt 0:00:11]} d5 {[%emt 0:00:12]} 4. Bg2 {[%emt 0:00:05]} d4 {[%emt 0:00:15]} 5. O-O {[%emt 0:00:51]} c5 {[%emt 0:00:14]} 6. e3 {[%emt 0:01:23]} Nc6 {[%emt 0:00:15]} 7. exd4 {[%emt 0:00:07]} cxd4 {[%emt 0:00:07]} 8. d3 {[%emt 0:00:03]} Bd6 {[%emt 0:00:18] A13: English Opening: 1...e6.} 9. Na3 {[%emt 0:00:39]} O-O {[%emt 0:00:12]} 10. Nc2 {[%emt 0:00:02]} e5 {[%emt 0:00:08] The position is equal.} 11. b4 {[%emt 0:02:43]} Re8 {[%emt 0:00:38]} (11... Bxb4 12. Nxb4 Nxb4 13. Nxe5 $16) 12. c5 {[%emt 0:02:37]} Bf8 {[%emt 0:00:52]} 13. Bg5 {[%emt 0:00:13]} Bf5 {[%emt 0:17:04] [#]} ({Black should play} 13... h6 $15 14. Bxf6 Qxf6) 14. Nh4 $146 {[%emt 0:03:21]} ({Predecessor:} 14. Re1 a6 15. Nh4 Bd7 16. Nf3 b6 17. cxb6 Rb8 18. Nd2 Rxb6 19. Nc4 Rb8 20. a3 {1-0 (46) Nguyen,P (2199)-Nguyen,V (2407) Hanoi 2021}) 14... Be6 {[%emt 0:09:58]} 15. f4 {[%emt 0:21:53]} h6 {[%emt 0:25:06] Prevents b5.} 16. Bxf6 {[%emt 0:00:27]} (16. b5 {is more complex.} hxg5 17. fxg5 Bg4 18. Qe1) 16... Qxf6 {[%emt 0:00:09]} 17. f5 {[%emt 0:15:06]} Bd7 {[%emt 0:01:53]} 18. Be4 {[%emt 0:00:17]} Rab8 {[%emt 0:10:13]} 19. Qh5 {[%emt 0:08:55]} Ne7 {[%emt 0:03:01][%cal Bc6e7,Be7d5,Bd5f4][%mdl 32]} (19... Nd8 {simplifies} 20. Nf3 b6 21. cxb6 axb6 22. a4 Nb7) 20. g4 {[%emt 0:10:39]} Bc6 {[%emt 0:04:19]} (20... Qg5 {simplifies} 21. Qxg5 hxg5 22. Nf3 f6) 21. Ne1 {[%emt 0:05:49]} (21. Nf3 $1 $11 {keeps the balance.}) 21... Nd5 $36 {[%emt 0:14:16][%mdl 2048] Keeping White busy.} 22. b5 {[%emt 0:01:07]} Nf4 $1 {[%emt 0:00:21]} 23. Rxf4 {[%emt 0:00:06]} exf4 {[%emt 0:00:03]} 24. bxc6 {[%emt 0:00:06]} Rxe4 $1 {[%emt 0:00:08][%mdl 64]} (24... bxc6 25. Nhf3 $16) 25. dxe4 {[%emt 0:03:49] Loses the game.} (25. g5 $17 Rxe1+ 26. Rxe1 Qxg5+ 27. Qxg5 hxg5 28. cxb7 (28. c7 $2 Rc8 $19) 28... Bxc5 29. Nf3 Rxb7 30. Re8+ Bf8 31. Nxg5) 25... d3 $1 $19 {[%emt 0:00:05]} 26. Rd1 {[%emt 0:01:51] Threatens to win with c7.} Qd4+ $1 {[%emt 0:00:07]} 27. Kh1 {[%emt 0:05:27] And now c7 would win.} Qxe4+ {[%emt 0:00:05]} 28. Nef3 {[%emt 0:02:11] Hoping for c7.} Qe2 $1 {[%emt 0:05:18]} (28... bxc6 29. g5 Qe2 30. Re1 Qxa2 31. g6 fxg6 32. fxg6 $15) 29. Rd2 {[%emt 0:01:30]} ({Don't go for} 29. Re1 $2 Qxe1+ $3 {[%mdl 512]} 30. Nxe1 d2 $19) (29. Rb1 $19 d2 30. Nxd2 Qxd2 31. g5 Qxa2 32. Rg1 hxg5 33. Qxg5 Qd5+ 34. Qg2 Qxc6 35. Qxc6 bxc6 36. Kg2) 29... Qf1+ {[%emt 0:00:02]} 30. Ng1 {[%emt 0:00:05]} bxc6 {[%emt 0:03:08]} ({Worse is} 30... Bxc5 31. Nhf3 Bxg1 32. Nxg1 $17) 31. g5 {[%emt 0:03:13] [#]} Rb1 $1 {[%emt 0:01:33][%csl Gb1][%cal Rf1g1]} ({Not} 31... Bxc5 32. Qd1 Qxd1 33. Rxd1 hxg5 34. Nhf3 $17) 32. Nhf3 {[%emt 0:00:08]} Bxc5 {[%emt 0:00:02]} 33. Rg2 {[%emt 0:00:07]} Bxg1 {[%emt 0:00:52]} 34. Rxg1 {[%emt 0:02:08]} d2 $1 {[%emt 0:00:23] Weighted Error Value: White=0.38/Black=0.04 (flawless)} 0-1